fUST/lending_fUST_20250725
["ID","MTS","AMOUNT","RATE_DAILY","PERIOD"]
[374607070,1753372904543,-184.35639766,0.00019406,2]
[374607071,1753372904613,-460.0,0.00019406,2]
[374607072,1753372904683,-460.0,0.00019406,2]
[374607073,1753372904745,-460.0,0.00019406,2]
[374607074,1753372904810,-460.0,0.00019406,2]
[374607075,1753372904878,-460.0,0.00019406,2]
[374607076,1753372905080,-460.65677277,0.00019406,2]
[374607077,1753372905150,-460.0,0.00019406,2]
[374607078,1753372905223,-460.0,0.00019406,2]
[374607079,1753372905287,-460.0,0.00019406,2]
[374607080,1753372905354,-460.0,0.00019406,2]
[374607081,1753372905762,-460.0,0.00019406,2]
[374607082,1753372905834,-460.0,0.00019406,2]
[374607083,1753372905902,-460.0,0.00019406,2]
[374607084,1753372905970,-460.0,0.00019406,2]
[374607085,1753372906042,-460.0,0.00019406,2]
[374607086,1753372906602,-460.0,0.00019406,2]
[374607087,1753372906678,-466.65095932,0.00019406,2]
[374607088,1753372906749,-460.0,0.00019406,2]
[374607089,1753372906817,-460.0,0.00019406,2]
[374607090,1753372906884,-462.30774263,0.00019406,2]
[374607091,1753372908683,-460.0,0.00019403,2]
[374607092,1753372908751,-460.0,0.00019406,2]
[374607093,1753372908819,-530.24978864,0.00019406,2]
[374607094,1753372908885,-460.0,0.00019406,2]
[374607095,1753372908952,-460.0,0.00019406,2]
[374607096,1753372909221,-460.0,0.00019406,2]
[374607097,1753372909285,-460.0,0.00019406,2]
[374607098,1753372909350,-460.0,0.00019406,2]
[374607099,1753372909417,-460.0,0.00019406,2]
[374607100,1753372909483,-460.0,0.00019406,2]
[374607101,1753372909797,-460.0,0.00019406,2]
[374607102,1753372909862,-568.52,0.00019406,2]
[374607103,1753372909926,-460.0,0.00019406,2]
[374607104,1753372909990,-460.0,0.00019406,2]
[374607105,1753372910053,-460.0,0.00019406,2]
[374607106,1753372910454,-460.0,0.00019406,2]
[374607107,1753372910517,-460.0,0.00019406,2]
[374607108,1753372910583,-460.0,0.00019407,2]
[374607109,1753372910648,-460.0,0.00019407,2]
[374607110,1753372910714,-460.0,0.00019407,2]
[374607111,1753372911128,-460.0,0.00019407,2]
[374607112,1753372911192,-500.0,0.00019473,2]
[374607113,1753372911379,463.43741817,0.00019398,2]
[374607114,1753372912336,500.0,0.00019397,2]
[374607115,1753372912405,500.0,0.00019397,2]
[374607116,1753372912474,500.0,0.00019397,2]
[374607117,1753372912545,500.0,0.00019397,2]
[374607118,1753372912616,500.0,0.00019397,2]
[374607119,1753372912687,116.56258183,0.00019397,2]
[374607120,1753372912751,383.43741817,0.00019397,2]
[374607121,1753372912822,500.0,0.00019397,2]
[374607122,1753372912887,500.0,0.00019397,2]
[374607123,1753372912952,500.0,0.00019397,2]
[374607124,1753372913016,500.0,0.00019397,2]
[374607125,1753372913079,460.0,0.00019403,2]
[374607126,1753372913148,500.0,0.00019397,2]
[374607127,1753372913213,500.0,0.00019397,2]
[374607128,1753372913282,500.0,0.00019397,2]
[374607129,1753372913347,500.0,0.00019397,2]
[374607130,1753372913518,156.56258183,0.00019397,2]
[374607131,1753372913583,343.43741817,0.00019397,2]
[374607132,1753372913655,310.8239894,0.00019397,2]
[374607133,1753372913725,500.0,0.00019397,2]
[374607134,1753372913794,500.0,0.00019397,2]
[374607135,1753372913859,500.0,0.00019397,2]
[374607136,1753372913927,500.0,0.00019397,2]
[374607137,1753372913992,500.0,0.00019397,2]
[374607138,1753372914067,500.0,0.00019397,2]
[374607139,1753372914137,500.0,0.00019397,2]
[374607140,1753372914283,500.0,0.00019397,2]
[374607141,1753372914353,345.73859243,0.00019397,2]
[374607142,1753372914419,154.26140757,0.00019397,2]
[374607143,1753372914573,500.0,0.00019397,2]
[374607144,1753372914642,500.0,0.00019397,2]
[374607145,1753372914786,500.0,0.00019397,2]
[374607146,1753372914855,500.0,0.00019397,2]
[374607147,1753372914985,500.0,0.00019397,2]
[374607148,1753372915185,500.0,0.00019397,2]
[374607149,1753372915255,500.0,0.00019397,2]
[374607150,1753372915378,460.0,0.00019403,2]
[374607151,1753372915631,500.0,0.00019397,2]
[374607152,1753372915830,385.73859243,0.00019398,2]
[374607153,1753372915891,74.26140757,0.00019398,2]
[374607154,1753372915963,500.0,0.00019397,2]
[374607155,1753372916989,460.0,0.00019398,2]
[374607156,1753372917057,460.0,0.00019398,2]
[374607157,1753372917136,3505.73859243,0.00018634,2]
[374607158,1753372917196,5000.0,0.00018634,2]
[374607159,1753372917256,1494.26140757,0.00018634,2]
[374607160,1753372930214,-500.0,0.00019397,2]
[374607161,1753372930285,-500.0,0.00019397,2]
[374607162,1753372930353,-500.0,0.00019397,2]
[374607163,1753372930424,-500.0,0.00019397,2]
[374607164,1753372930492,-500.0,0.00019397,2]
[374607165,1753372930880,-500.0,0.00019397,2]
[374607166,1753372930956,-500.0,0.00019397,2]
[374607167,1753372931026,-500.0,0.00019397,2]
[374607168,1753372931094,-500.0,0.00019397,2]
[374607169,1753372931174,-500.0,0.00019397,2]
[374607170,1753372931451,-500.0,0.00019397,2]
[374607171,1753372931650,-572.0,0.00019397,2]
[374607172,1753372931744,-500.0,0.00019397,2]
[374607173,1753372931820,-500.0,0.00019397,2]
[374607174,1753372931888,-356.0,0.00019397,2]
[374607175,1753372932209,-144.0,0.00019397,2]
[374607176,1753372932295,-500.0,0.00019397,2]
[374607177,1753372932369,-500.0,0.00019397,2]
[374607178,1753372932440,-500.0,0.00019397,2]
[374607179,1753372932510,-500.0,0.00019397,2]
[374607180,1753372932578,-180.43205343,0.00019397,2]
[374607181,1753372932972,-351.13589314,0.00019397,2]
[374607182,1753372933040,-460.0,0.00019398,2]
[374607183,1753372933108,-460.0,0.00019398,2]
[374607184,1753372933172,-460.0,0.00019398,2]
[374607185,1753372933240,-460.0,0.00019399,2]
[374607186,1753372933314,-157.72821372,0.00019399,2]
[374607187,1753372933544,-302.27178628,0.00019399,2]
[374607188,1753372933614,-460.0,0.00019399,2]
[374607189,1753372933682,-460.0,0.00019403,2]
[374607190,1753372933761,-460.0,0.00019403,2]
[374607191,1753372933830,-460.0,0.00019406,2]
[374607192,1753372934690,285.74140757,0.00019397,2]
[374607193,1753372935121,429.71501987,0.00019403,2]
[374607194,1753372935181,30.28498013,0.00019403,2]
[374607195,1753372935450,460.0,0.00019403,2]
[374607196,1753372936338,460.0,0.00019398,2]
[374607197,1753372936598,460.0,0.00019399,2]
[374607198,1753372937231,460.0,0.00019398,2]
[374607199,1753372940208,460.0,0.00019399,2]
[374607200,1753372942711,460.0,0.00019406,2]
[374607201,1753372944439,460.0,0.00019398,2]
[374607202,1753372946465,460.0,0.00019399,2]
[374607203,1753372948632,460.0,0.00019398,2]
[374607204,1753372948708,460.0,0.00019398,2]
[374607205,1753372952296,150.0,0.00015077,2]
[374607206,1753372955795,219.71501987,0.00019399,2]
[374607207,1753372955863,240.28498013,0.00019399,2]
[374607208,1753372956415,460.0,0.00019403,2]
[374607209,1753372959312,460.0,0.00019398,2]
[374607210,1753372960588,3839.71501987,0.000195,2]
[374607211,1753372960648,1160.28498013,0.000195,2]
[374607212,1753372961759,460.0,0.00019403,2]
[374607213,1753372961823,336.50172962,0.00019398,2]
[374607214,1753372963739,460.0,0.00019403,2]
[374607215,1753372964166,460.0,0.00019398,2]
[374607216,1753372966727,465.51637816,0.00019403,2]
[374607217,1753372967523,460.0,0.00019399,2]
[374607218,1753372967718,460.0,0.00019398,2]
[374607219,1753372967872,460.0,0.00019398,2]
[374607220,1753372969017,277.69691209,0.00019398,2]
[374607221,1753372969076,182.30308791,0.00019398,2]
[374607222,1753372971236,460.0,0.00019398,2]
[374607223,1753372971305,460.0,0.00019399,2]
[374607224,1753372971530,460.0,0.00019403,2]
[374607225,1753372973601,460.0,0.00019398,2]
[374607226,1753372973668,460.0,0.00019398,2]
[374607227,1753372975423,460.0,0.00019399,2]
[374607228,1753372975865,460.0,0.00019398,2]
[374607229,1753372975938,460.0,0.00019403,2]
[374607230,1753372977898,1137.69691209,0.000195,2]
[374607231,1753372977954,3862.30308791,0.000195,2]
[374607232,1753372979156,460.0,0.00019398,2]
[374607233,1753372983305,460.0,0.00019398,2]
[374607234,1753372983926,217.69691209,0.00019398,2]
[374607235,1753372983990,242.30308791,0.00019398,2]
[374607236,1753372986844,460.0,0.00019403,2]
[374607237,1753372988654,460.0,0.00019403,2]
[374607238,1753372991829,520.55,0.00019399,2]
[374607239,1753372992497,460.0,0.00019399,2]
[374607240,1753372992835,460.0,0.00019398,2]
[374607241,1753372993627,460.0,0.00019403,2]
[374607242,1753372993797,1937.14691209,0.000195,2]
[374607243,1753372993865,3062.85308791,0.000195,2]
[374607244,1753372994502,460.0,0.00019398,2]
[374607245,1753372995858,460.0,0.00019403,2]
[374607246,1753372999563,540.0,0.00019398,2]
[374607247,1753373001181,460.0,0.00019399,2]
[374607248,1753373008903,17.14691209,0.00019398,2]
[374607249,1753373008965,442.85308791,0.00019398,2]
[374607250,1753373010351,4557.14691209,0.000195,2]
[374607251,1753373010556,442.85308791,0.000195,2]
[374607252,1753373010629,389.09419639,0.00019398,2]
[374607253,1753373012904,460.0,0.00019398,2]
[374607254,1753373013326,460.0,0.00019399,2]
[374607255,1753373014509,460.0,0.00019398,2]
[374607256,1753373014622,460.0,0.00019398,2]
[374607257,1753373015136,460.0,0.00019398,2]
[374607258,1753373016974,460.0,0.00019398,2]
[374607259,1753373017662,150.0,0.00015053,2]
[374607260,1753373018074,150.0,0.0001577,2]
[374607261,1753373018497,150.0,0.00016487,2]
[374607262,1753373018567,460.0,0.00019399,2]
[374607263,1753373018916,150.0,0.00017204,2]
[374607264,1753373019322,150.0,0.00017921,2]
[374607265,1753373026123,198.0527157,0.000195,2]
[374607266,1753373026184,4801.9472843,0.000195,2]
[374607267,1753373026505,198.0527157,0.00019398,2]
[374607268,1753373026572,261.9472843,0.00019398,2]
[374607269,1753373027651,574.05996272,0.00019398,2]
[374607270,1753373030352,460.0,0.00019398,2]
[374607271,1753373031896,460.0,0.00019398,2]
[374607272,1753373032625,460.0,0.00019398,2]
[374607273,1753373036368,460.0,0.00019398,2]
[374607274,1753373039415,460.0,0.00019403,2]
[374607275,1753373043055,460.0,0.00019398,2]
[374607276,1753373044879,1403.99275298,0.000195,2]
[374607277,1753373044939,3596.00724702,0.000195,2]
[374607278,1753373048270,234.53106427,0.00019475,2]
[374607279,1753373048879,460.0,0.00019398,2]
[374607281,1753373050338,460.0,0.00019398,2]
[374607282,1753373050720,249.46168871,0.00019399,2]
[374607283,1753373050781,210.53831129,0.00019399,2]
[374607284,1753373051839,157.537137,0.00013699,2]
[374607285,1753373052662,460.0,0.00019398,2]
[374607286,1753373060206,4171.92455171,0.000195,2]
[374607287,1753373060261,828.07544829,0.000195,2]
[374607288,1753373066905,460.0,0.00019403,2]
[374607289,1753373070374,176.82329562,0.00019476,2]
[374607290,1753373073359,460.0,0.00019398,2]
[374607291,1753373074191,1361.1781723,0.00018648,2]
[374607292,1753373075223,460.0,0.00019398,2]
[374607293,1753373076012,1253.92308379,0.000195,2]
[374607294,1753373076072,3746.07691621,0.000195,2]
[374607295,1753373076836,460.0,0.00019398,2]
[374607296,1753373077095,460.0,0.00019398,2]
[374607297,1753373077355,333.92308379,0.00019398,2]
[374607298,1753373077424,126.07691621,0.00019398,2]
[374607299,1753373079282,460.0,0.00019398,2]
[374607300,1753373085779,150.0,0.0001484,2]
[374607301,1753373088294,460.0,0.00019403,2]
[374607302,1753373091508,460.0,0.00019398,2]
[374607303,1753373092084,460.0,0.00019398,2]
[374607304,1753373092806,2883.92308379,0.000195,2]
[374607305,1753373092868,2116.07691621,0.000195,2]
[374607306,1753373098502,462.96630464,0.00019398,2]
[374607307,1753373099777,493.45,0.00019398,2]
[374607308,1753373100428,460.0,0.00019398,2]
[374607309,1753373102375,460.0,0.00019398,2]
[374607310,1753373109204,472.5440475,0.00019474,2]
[374607311,1753373113549,460.0,0.00019398,2]
[374607312,1753373114445,74.96273165,0.00019398,2]
[374607313,1753373114516,711.95726835,0.00019398,2]
[374607314,1753373120942,4288.04273165,0.000195,2]
[374607315,1753373121005,711.95726835,0.000195,2]
[374607316,1753373127390,460.0,0.00019398,2]
[374607317,1753373128675,505.86,0.00019398,2]
[374607318,1753373129704,3322.18273165,0.00018673,2]
[374607319,1753373129768,5000.0,0.00018673,2]
[374607320,1753373129846,5000.0,0.00018673,2]
[374607321,1753373129916,5000.0,0.00018673,2]
[374607322,1753373129983,5000.0,0.00018673,2]
[374607323,1753373130051,1577.81726835,0.00018673,2]
[374607324,1753373130135,460.0,0.00019398,2]
[374607325,1753373131745,460.0,0.00019398,2]
[374607326,1753373132331,278.33657363,0.00019398,2]
[374607327,1753373133724,460.0,0.00019398,2]
[374607328,1753373135124,460.0,0.00019398,2]
[374607329,1753373136388,504.25506083,0.00019398,2]
[374607330,1753373136884,460.0,0.00019398,2]
[374607331,1753373136986,339.59109719,0.000195,2]
[374607332,1753373137049,4660.40890281,0.000195,2]
[374607333,1753373137119,339.59109719,0.00019398,2]
[374607334,1753373137182,120.40890281,0.00019398,2]
[374607335,1753373137338,169.40151226,0.00019398,2]
[374607336,1753373142140,460.0,0.00019398,2]
[374607337,1753373148439,460.0,0.00019398,2]
[374607338,1753373149592,460.0,0.00019398,2]
[374607339,1753373152416,3330.18958493,0.000195,2]
[374607340,1753373152492,1669.81041507,0.000195,2]
[374607341,1753373152569,460.0,0.00019398,2]
[374607342,1753373153225,460.0,0.00019398,2]
[374607343,1753373153300,150.0,0.00014613,2]
[374607344,1753373153683,150.0,0.00015309,2]
[374607345,1753373154080,150.0,0.00016005,2]
[374607346,1753373154529,150.0,0.00016701,2]
[374607347,1753373155296,590.11139795,0.00019398,2]
[374607348,1753373162414,473.87018173,0.00019398,2]
[374607349,1753373168154,746.20800525,0.000195,2]
[374607350,1753373168219,4253.79199475,0.000195,2]
[374607351,1753373169128,460.0,0.00019398,2]
[374607352,1753373169193,286.20800525,0.00019398,2]
[374607353,1753373169251,173.79199475,0.00019398,2]
[374607354,1753373171706,460.0,0.00019398,2]
[374607355,1753373172829,460.0,0.00019398,2]
[374607356,1753373176373,460.0,0.00019398,2]
[374607357,1753373176673,460.0,0.00019398,2]
[374607358,1753373177195,306.263836,0.00018205,2]
[374607359,1753373177744,361.79716,0.00018294,2]
[374607360,1753373178185,259.8211767,0.00018295,2]
[374607361,1753373180620,460.0,0.00019398,2]
[374607362,1753373183386,460.0,0.00019398,2]
[374607363,1753373183463,1138.32583255,0.000195,2]
[374607364,1753373183529,3861.67416745,0.000195,2]
[374607365,1753373186725,460.0,0.00019398,2]
[374607366,1753373187136,463.45108865,0.00019398,2]
[374607367,1753373192748,214.8747439,0.00019398,2]
[374607368,1753373192812,283.9852561,0.00019398,2]
[374607369,1753373194097,196.63568455,0.00019398,2]
[374607370,1753373201890,460.0,0.00019398,2]
[374607371,1753373202947,4059.37905935,0.000195,2]
[374607372,1753373203012,940.62094065,0.000195,2]
[374607373,1753373206530,460.0,0.00019398,2]
[374607374,1753373211486,460.0,0.00019398,2]
[374607375,1753373218044,3139.37905935,0.000195,2]
[374607376,1753373218108,1860.62094065,0.000195,2]
[374607377,1753373224696,460.0,0.00019398,2]
[374607378,1753373227273,460.0,0.00019398,2]
[374607379,1753373235334,462.73406247,0.00019398,2]
[374607380,1753373237135,-300.0,0.00019573,2]
[374607381,1753373237160,-300.0,0.00019574,2]
[374607382,1753373237184,-211.36627622,0.00019574,2]
[374607383,1753373238187,1756.64499688,0.000195,2]
[374607384,1753373238269,3243.35500312,0.000195,2]
[374607385,1753373240055,260.47701424,0.00019398,2]
[374607386,1753373243066,460.0,0.00019398,2]
[374607387,1753373243876,481.26,0.00019398,2]
[374607388,1753373244143,-75.63372378,0.00019574,2]
[374607389,1753373244170,-1200.0,0.00019574,2]
[374607390,1753373244194,-708.0,0.00019574,2]
[374607391,1753373244222,-428.82107626,0.00019574,2]
[374607392,1753373244244,-362.17433686,0.00019574,2]
[374607393,1753373251553,460.0,0.00019398,2]
[374607394,1753373254430,94.90798264,0.00019398,2]
[374607395,1753373254501,373.80070035,0.00019398,2]
[374607396,1753373254579,1416.32373524,0.000195,2]
[374607397,1753373264506,460.0,0.00019398,2]
[374607398,1753373267985,460.0,0.00019398,2]
[374607400,1753373277911,460.0,0.00019398,2]
[374607401,1753373278163,460.0,0.00019398,2]
[374607402,1753373278495,460.0,0.00019398,2]
[374607403,1753373282093,460.0,0.00019398,2]
[374607404,1753373283728,150.0,0.00014571,2]
[374607405,1753373284068,299.87556441,0.00019398,2]
[374607406,1753373284134,160.12443559,0.00019398,2]
[374607407,1753373287062,460.0,0.00019398,2]
[374607408,1753373299135,460.0,0.00019398,2]
[374607409,1753373313829,460.0,0.00019398,2]
[374607410,1753373318435,302.5764263,0.00019301,2]
[374607411,1753373318626,460.0,0.00019398,2]
[374607412,1753373324366,460.0,0.00019398,2]
[374607413,1753373324598,207.7662537,0.00018674,2]
[374607414,1753373334189,460.0,0.00019398,2]
[374607415,1753373343034,1569.53288441,0.000195,2]
[374607416,1753373343097,3430.46711559,0.000195,2]
[374607417,1753373354921,460.0,0.00019398,2]
[374607418,1753373363811,460.0,0.00019398,2]
[374607419,1753373376978,460.0,0.00019398,2]
[374607420,1753373377965,189.53288441,0.00019398,2]
[374607421,1753373378024,270.46711559,0.00019398,2]
[374607422,1753373381384,460.0,0.00019398,2]
[374607423,1753373389658,460.0,0.00019398,2]
[374607424,1753373390567,262.78405349,0.00019398,2]
[374607425,1753373391981,-160.76126603,0.00019571,2]
[374607426,1753373392037,-300.0,0.00019572,2]
[374607427,1753373392099,-500.0,0.00019573,2]
[374607428,1753373392166,-500.0,0.00019573,2]
[374607429,1753373392223,-500.0,0.00019573,2]
[374607430,1753373392288,-500.0,0.00019573,2]
[374607431,1753373392363,-500.0,0.00019573,2]
[374607432,1753373392424,-500.0,0.00019573,2]
[374607433,1753373392490,-500.0,0.00019573,2]
[374607434,1753373392551,-500.0,0.00019573,2]
[374607435,1753373392616,-500.0,0.00019573,2]
[374607436,1753373392681,-227.02631125,0.00019573,2]
[374607437,1753373392883,-500.0,0.00019573,2]
[374607438,1753373392952,-500.0,0.00019573,2]
[374607439,1753373393014,-500.0,0.00019573,2]
[374607440,1753373393074,-245.34170981,0.00019573,2]
[374607441,1753373393132,-500.0,0.00019573,2]
[374607442,1753373393188,-500.0,0.00019573,2]
[374607443,1753373393251,-306.61098384,0.00019573,2]
[374607446,1753373393315,-500.0,0.00019573,2]
[374607447,1753373393378,-500.0,0.00019573,2]
[374607448,1753373393444,-500.0,0.00019573,2]
[374607449,1753373393510,-20.51945814,0.00019573,2]
[374607450,1753373394167,-479.48054186,0.00019573,2]
[374607451,1753373394242,-500.0,0.00019573,2]
[374607452,1753373394312,-500.0,0.00019573,2]
[374607453,1753373394379,-500.0,0.00019573,2]
[374607454,1753373394446,-500.0,0.00019573,2]
[374607455,1753373394517,-210.79565606,0.00019573,2]
[374607456,1753373394583,-500.0,0.00019573,2]
[374607457,1753373394653,-500.0,0.00019573,2]
[374607458,1753373394717,-500.0,0.00019573,2]
[374607459,1753373394779,-409.97622507,0.00019573,2]
[374607460,1753373395011,460.0,0.00019398,2]
[374607461,1753373401770,5000.0,0.000196,2]
[374607462,1753373402080,460.0,0.00019398,2]
[374607463,1753373409684,460.0,0.00019398,2]
[374607464,1753373411388,150.0,0.00014522,2]
[374607465,1753373415032,460.0,0.00019398,2]
[374607466,1753373417584,3809.49515402,0.000196,2]
[374607467,1753373417652,1190.50484598,0.000196,2]
[374607468,1753373421385,460.0,0.00019398,2]
[374607502,1753373432528,-396.62917581,0.00019669,2]
[374607504,1753373432538,-70.47012418,0.00019669,2]
[374607512,1753373432616,-389.52987582,0.00019669,2]
[374607514,1753373432628,-354.59088035,0.00019669,2]
[374607516,1753373432638,-300.0,0.00019669,2]
[374607518,1753373432648,-902.0,0.00019669,2]
[374607520,1753373432659,-300.0,0.00019669,2]
[374607522,1753373432670,-450.98427052,0.00019669,2]
[374607524,1753373432680,-467.86618401,0.00019669,2]
[374607527,1753373432690,-367.40122043,0.00019669,2]
[374607530,1753373432700,-460.0,0.0001967,2]
[374607533,1753373432711,-460.0,0.0001967,2]
[374607536,1753373432721,-460.0,0.0001967,2]
[374607539,1753373432730,-460.0,0.0001967,2]
[374607542,1753373432740,-460.0,0.0001967,2]
[374607545,1753373432749,-460.0,0.0001967,2]
[374607548,1753373432759,-460.0,0.0001967,2]
[374607551,1753373432769,-460.0,0.0001967,2]
[374607553,1753373432778,-460.0,0.0001967,2]
[374607554,1753373432787,-460.0,0.0001967,2]
[374607555,1753373432796,-460.0,0.0001967,2]
[374607557,1753373432806,-460.0,0.0001967,2]
[374607559,1753373432815,-460.0,0.0001967,2]
[374607561,1753373432825,-460.75633619,0.0001967,2]
[374607563,1753373432834,-460.0,0.0001967,2]
[374607564,1753373432844,-460.0,0.0001967,2]
[374607566,1753373432854,-460.0,0.0001967,2]
[374607568,1753373432863,-460.0,0.0001967,2]
[374607570,1753373432874,-460.0,0.0001967,2]
[374607572,1753373432884,-460.0,0.0001967,2]
[374607574,1753373432893,-460.0,0.0001967,2]
[374607576,1753373432902,-460.0,0.0001967,2]
[374607578,1753373432912,-168.97318105,0.0001967,2]
[374607580,1753373432921,-460.0,0.0001967,2]
[374607582,1753373432931,-460.0,0.0001967,2]
[374607584,1753373432940,-478.94,0.0001967,2]
[374607586,1753373432950,-237.4209502,0.0001967,2]
[374607588,1753373432960,-460.0,0.0001967,2]
[374607590,1753373432970,-460.0,0.0001967,2]
[374607592,1753373432980,-460.0,0.0001967,2]
[374607594,1753373432990,-460.0,0.0001967,2]
[374607596,1753373432999,-460.0,0.0001967,2]
[374607598,1753373433008,-460.0,0.0001967,2]
[374607600,1753373433018,-460.0,0.00019671,2]
[374607601,1753373433027,-460.0,0.00019671,2]
[374607604,1753373433037,-460.0,0.00019671,2]
[374607605,1753373433047,-460.0,0.00019671,2]
[374607607,1753373433057,-460.0,0.00019671,2]
[374607609,1753373433067,-500.0,0.00019671,2]
[374607611,1753373433077,-460.0,0.00019671,2]
[374607613,1753373433087,-460.0,0.00019671,2]
[374607615,1753373433096,-460.0,0.00019671,2]
[374607616,1753373433105,-460.0,0.00019671,2]
[374607617,1753373433116,-460.0,0.00019671,2]
[374607618,1753373433126,-460.0,0.00019671,2]
[374607619,1753373433136,-510.00000044,0.00019671,2]
[374607620,1753373433146,-463.3122733,0.00019671,2]
[374607621,1753373433156,-462.99392672,0.00019671,2]
[374607622,1753373433166,-460.0,0.00019671,2]
[374607623,1753373433175,-460.0,0.00019671,2]
[374607624,1753373433185,-460.0,0.00019671,2]
[374607625,1753373433195,-460.0,0.00019671,2]
[374607626,1753373433204,-460.0,0.00019671,2]
[374607627,1753373433215,-450.80498979,0.00019671,2]
[374607628,1753373433228,-9.19501021,0.00019671,2]
[374607629,1753373433238,-460.0,0.00019671,2]
[374607630,1753373433247,-460.0,0.00019671,2]
[374607631,1753373433257,-460.0,0.00019671,2]
[374607632,1753373433267,-460.0,0.00019671,2]
[374607633,1753373433276,-460.0,0.00019671,2]
[374607634,1753373433286,-460.0,0.00019671,2]
[374607635,1753373433296,-460.0,0.00019671,2]
[374607636,1753373433307,-460.0,0.00019671,2]
[374607637,1753373433322,-202.89444926,0.00019671,2]
[374607638,1753373436495,5000.0,0.000196,2]
[374607669,1753373438651,-257.10555074,0.00019671,2]
[374607670,1753373438662,-464.86,0.00019671,2]
[374607671,1753373438672,-460.0,0.00019671,2]
[374607672,1753373438682,-460.0,0.00019671,2]
[374607673,1753373438691,-460.0,0.00019671,2]
[374607674,1753373438701,-460.0,0.00019672,2]
[374607675,1753373438711,-460.0,0.00019672,2]
[374607676,1753373438721,-460.0,0.00019672,2]
[374607677,1753373438731,-464.92657863,0.00019672,2]
[374607678,1753373438741,-250.47248155,0.00019672,2]
[374607679,1753373438750,-463.08840882,0.00019672,2]
[374607680,1753373438759,-460.0,0.00019672,2]
[374607681,1753373438769,-460.0,0.00019672,2]
[374607682,1753373438779,-460.0,0.00019672,2]
[374607683,1753373438789,-460.0,0.00019672,2]
[374607684,1753373438799,-460.0,0.00019672,2]
[374607685,1753373438809,-460.0,0.00019672,2]
[374607686,1753373438819,-419.74844633,0.00019672,2]
[374607687,1753373438828,-460.0,0.00019672,2]
[374607688,1753373438838,-460.0,0.00019672,2]
[374607689,1753373438848,-460.0,0.00019672,2]
[374607690,1753373438857,-572.91,0.00019672,2]
[374607691,1753373438867,-460.0,0.00019672,2]
[374607692,1753373438877,-460.0,0.00019672,2]
[374607693,1753373438891,-460.0,0.00019672,2]
[374607694,1753373438901,-460.0,0.00019672,2]
[374607695,1753373438911,-460.0,0.00019672,2]
[374607696,1753373438922,-498.86,0.00019672,2]
[374607697,1753373438931,-460.0,0.00019672,2]
[374607698,1753373438942,-460.0,0.00019672,2]